Cogmind - Beta 15 @@@ ROGUE MODE // 2025.06.22 @ 17:33:36 Player: Waste Result: Destroyed by BM-G6Q(R) with Subdweller Laser Performance ------------- Evolutions (0) 0 Regions Visited (2) 400 Robots Destroyed (16) 80 Value Destroyed (408) 408 Prototype IDs (11) 220 Alien Tech Used (0) 0 Bonus (0) 0 TOTAL SCORE: 1108 Bonus ------- None Cogmind --------- Core Integrity 0/250 Matter 300/300 Energy 100/100 System Corruption 1% Temperature Cool (6) Movement Treading (160) Location -10/Subcaves Parts ------- > --- POWER (1) -------- (None) > --- PROPULSION (2) --- Light Treads Light Treads > --- UTILITY (2) ------ Small Storage Unit Structural Scanner > --- WEAPON (2) ------- (None) > --- INVENTORY (8) ---- Meta Core Machine Analyzer Scrap Shield Peak State ------------ > --- POWER ------------ Ion Engine > --- PROPULSION ------- Aluminum Leg Aluminum Leg > --- UTILITY ---------- Small Storage Unit Terrain Scanner > --- WEAPON ----------- Particle Gun Subdweller Machine Gun > --- INVENTORY -------- Light Ion Engine Meta Core Light Treads Light Treads Structural Scanner Machine Analyzer EM Pulse Gun Assault Rifle [Rating: 11] Favorites ----------- Power Ion Engine Engine Ion Engine Propulsion Aluminum Leg Treads Light Treads Leg Aluminum Leg Utility Small Storage Unit Device Terrain Scanner Storage Small Storage Unit Weapon EM Pulse Gun Energy Gun EM Pulse Gun Ballistic Gun Subdweller Machine Gun Build | -11 -10 -10 ------- Run | Yrd Mat Sub Slots Evolved . | . . . Power . | . . . Propulsion . | . . . Utility . | . . . Weapon . | . . . Parts Attached 14 | 1 8 5 Power 2 | . 1 1 Engine 2 | . 1 1 Core . | . . . Reactor . | . . . Propulsion 4 | . 2 2 Treads 2 | . . 2 Leg 2 | . 2 . Wheel . | . . . Hover . | . . . Flight . | . . . Utility 2 | . 1 1 Device 2 | . 1 1 Storage . | . . . Processor . | . . . Hackware . | . . . Protection . | . . . Artifact . | . . . Weapon 6 | 1 4 1 Energy Gun 2 | . 2 . Energy Cannon . | . . . Ballistic Gun 4 | 1 2 1 Ballistic Cannon . | . . . Launcher . | . . . Special Weapon . | . . . Impact Weapon . | . . . Slashing Weapon . | . . . Piercing Weapon . | . . . Special Melee Weapon . | . . . Unidentified Prototypes . | . . . Parts Lost 9 | . 2 7 Power 3 | . 1 2 Propulsion 2 | . . 2 Utility . | . . . Weapon 4 | . 1 3 Highest Loss Streak 7 | . 2 7 To Critical Strikes . | . . . Average Backups 7 | 6 7 7 Power . | 1 1 . Propulsion 4 | 4 4 2 Utility 1 | . . 1 Weapon 1 | 1 . 1 Tool/Special . | . . . Unused Backups 10 | . 4 6 Power 1 | . 1 . Propulsion 4 | . 1 3 Utility 3 | . 1 2 Weapon 1 | . 1 . Tool/Special 1 | . . 1 Average Slot Usage (%) 98 | . 98 97 Engine 13 | . 13 13 Leg 27 | . 28 26 Device 13 | . 13 14 Storage 14 | . 14 14 Energy Gun 18 | . 19 18 Ballistic Gun 8 | . 8 8 Peak Build Rating 11 | 6 8 11 Average Rating 8 | 6 7 9 On Entrance 6 | 6 6 8 Naked Turns . | . . . Heaviest Build 18 | 11 16 18 Greatest Support 20 | 20 20 20 Greatest Overweight (x) . | . . . Average Overweight (x) . | . . . Largest Inventory Capacity 8 | 8 8 8 Average Capacity 8 | 8 8 8 Most Carried 8 | 6 8 8 Average Carried 7 | 6 7 7 Final Capacity 8 | 8 8 8 Final Carried 8 | 6 8 4 Class Distribution -------------------- 100% | Mutant Dominant Class ---------------- Mutant | -10/Materials Mutant | -10/Subcaves Resources | -11 -10 -10 ----------- Run | Yrd Mat Sub Matter Collected 416 | 200 142 74 Remotely . | . . . Salvage Created 510 | . 356 154 Parts 34 | . 25 9 Haulers Intercepted . | . . . Recyclers Shooed . | . . . Parts Field Recycled . | . . . Retrieved Matter . | . . . Parts Self-Destructed . | . . . Prevented . | . . . Kills | -11 -10 -10 ------- Run | Yrd Mat Sub Combat Hostiles Destroyed 15 | . 12 3 Guns 15 | . 12 3 Classes Destroyed 4 | . 3 1 Worker 1 | . 1 . Swarmer 6 | . 6 . Grunt 6 | . 6 . Subdweller 3 | . . 3 Best Kill Streak 5 | . 5 2 Combat Bots Only 4 | . 4 2 Max Kills in Single Turn 1 | . 1 1 Gunslinging . | . . . Exploded . | . . . Melee . | . . . Uniques/NPCs Destroyed . | . . . Combat | -11 -10 -10 -------- Run | Yrd Mat Sub Hostile Shots Fired 104 | . 60 44 Missed 22 | . 9 13 Hits 82 | . 51 31 Projectile 82 | . 51 31 Critical Strikes 2 | . 1 1 Damage Taken 1228 | . 587 641 Core 253 | . 105 148 Absorbed by Shields . | . . . Core Remaining (%) 100 | 100 . . Volleys Fired 71 | . 41 30 Largest 2 | . 2 2 Hottest 105 | . 105 105 Shots Fired 120 | . 81 39 Gun 120 | . 81 39 Cannon . | . . . Launcher . | . . . Special . | . . . Kinetic 65 | . 39 26 Thermal 47 | . 41 6 Explosive . | . . . Electromagnetic 8 | . 1 7 Robot Hit Streak 19 | . 7 19 Robot Miss Streak 3 | . 3 1 Penetration Max . | . . . Secondary Targets 1 | . 1 . Max Gunslinging Chain 1 | . 1 . Shots Hit Robots 74 | . 49 25 Core Hits 31 | . 23 8 Critical Kills . | . . . Critical Parts Destroyed . | . . . Critical Strikes 3 | . 2 1 Burn 3 | . 2 1 Melee Attacks . | . . . Impact . | . . . Slashing . | . . . Piercing . | . . . Sneak Attacks . | . . . Combat Hostiles . | . . . Follow-up Attacks . | . . . Damage Inflicted 1033 | . 591 442 Guns 995 | . 569 426 Cannons . | . . . Explosions . | . . . Melee . | . . . Ramming 38 | . 22 16 Kinetic 553 | . 259 294 Thermal 389 | . 310 79 Explosive . | . . . Electromagnetic 53 | . . 53 Impact . | . . . Slashing . | . . . Piercing . | . . . Highest Corruption 1 | . 1 1 Average Corruption 1 | . 1 1 Corruption Purged . | . . . Corruption Blocked . | . . . Effects 6 | . 1 5 Message Errors 2 | . . 2 Matter Fused 2 | . 1 1 Data Loss (minor) 1 | . . 1 Data Loss (major) 1 | . . 1 Overload Shots . | . . . Overflow Damage . | . . . Projectiles . | . . . Explosions . | . . . Melee . | . . . Knockbacks 1 | . . 1 Impact 1 | . . 1 Kinetic . | . . . Secondary . | . . . Self-Inflicted Damage . | . . . Shots . | . . . Rammed 22 | . . 22 Targets Rammed 28 | . 6 22 Kicked 6 | . 6 . Crushed . | . . . Highest Temperature 180 | . 180 . Average Temperature 66 | . 66 . Received Heat Transfer 318 | . 138 180 Siege Activations . | . . . Martial Activations . | . . . Shielding Activations . | . . . Robots Disrupted . | . . . Combat Hostiles . | . . . Robots Corrupted . | . . . Combat Hostiles . | . . . Parts Fried . | . . . Impact Corruptions . | . . . Robots Melted . | . . . Combat Hostiles . | . . . Parts Melted 3 | . 3 . Heat Transferred 1221 | . 962 259 Parts Sabotaged . | . . . Parts Stolen . | . . . Parts Stripped . | . . . Power Chain Reactions . | . . . Alert | -11 -10 -10 ------- Run | Yrd Mat Sub Maximum Alert Level . | . . . Low Security (%) 100 | 100 100 . Level 1 . | . . . Level 2 . | . . . Level 3 . | . . . Level 4 . | . . . Level 5 . | . . . High Security . | . . . Max Security . | . . . Peak Influence 105 | . 105 . Initial . | . . . Average 22 | . 22 . Influence Increases 392 | . 392 . Destroy 0b10 Robot/C 240 | . 240 . Destroy 0b10 Robot/NC 5 | . 5 . Destroy Leader 50 | . 50 . Successful Hack 6 | . 6 . Disable Machine 15 | . 15 . Destroy Structure 1 | . 1 . Lose Combat Pursuer 75 | . 75 . Influence Decreases 392 | . 299 93 Entered New Map 45 | . . 45 Time Decay 327 | . 279 48 Lost Part 20 | . 20 . Squads Dispatched 2 | . 2 . Investigation 1 | . 1 . Extermination . | . . . Reinforcement 1 | . 1 . Assault . | . . . Garrison . | . . . Intercept . | . . . Searches Triggered . | . . . Construction Impeded . | . . . Haulers Reinforced . | . . . Active Scanning Responses . | . . . Cargo Convoy Interrupts . | . . . Stealth | -11 -10 -10 --------- Run | Yrd Mat Sub Distress Signals 2 | . 2 . Communications Jammed . | . . . Distress Signals . | . . . Times Spotted 28 | . 23 5 Peak Tracking Total 5 | . 5 2 Tactical Retreats 4 | . 4 . Traps | -11 -10 -10 ------- Run | Yrd Mat Sub Traps Triggered 2 | . 2 . Indirectly . | . . . Trap Hack Attempts . | . . . Triggered . | . . . Disarmed . | . . . Reprogrammed . | . . . Reused . | . . . Traps Extracted . | . . . Installed . | . . . Triggered . | . . . Machines | -11 -10 -10 ---------- Run | Yrd Mat Sub Machines Disabled 2 | . 1 1 Max in Single Turn 1 | . 1 1 Machines Repaired . | . . . Machines Dismantled . | . . . Machines Sabotaged . | . . . Overloaded Fab Kills . | . . . Hacking | -11 -10 -10 --------- Run | Yrd Mat Sub Machines Accessed 4 | . 3 1 Terminals 3 | . 3 . Fabricators . | . . . Repair Stations . | . . . Recycling Units . | . . . Scanalyzers . | . . . Garrison Access . | . . . Total Hacks 9 | . 8 1 Successful 4 | . 3 1 Failed 4 | . 4 . Catastrophic 1 | . 1 . Database Lockouts 1 | . 1 . Manual 4 | . 4 . Terminals 8 | . 8 . Fabricators . | . . . Repair Stations . | . . . Recycling Units . | . . . Scanalyzers . | . . . Garrison Access . | . . . Terminal Hacks 4 | . 3 1 Robot Analysis 1 | . 1 . Terminal Index 1 | . 1 . Hauler Manifests 1 | . 1 . Proto ID Catalog 1 | . . 1 Fabricator Hacks . | . . . Repair Station Hacks . | . . . Recycling Unit Hacks . | . . . Scanalyzer . | . . . Garrison Access Hacks . | . . . Unauthorized Hacks . | . . . Terminals . | . . . Fabricators . | . . . Repair Stations . | . . . Recycling Units . | . . . Scanalyzers . | . . . Garrison Access . | . . . Data Cores Recovered . | . . . Used . | . . . Hacking Detections 2 | . 2 . Full Trace Events 1 | . 1 . Feedback Events . | . . . Feedback Blocked . | . . . Robot Schematics Acquired . | . . . Robots Built . | . . . Authchips . | . . . Time . | . . . Total Robot Build Rating . | . . . Part Schematics Acquired . | . . . Parts Built . | . . . Authchips . | . . . Time . | . . . Total Part Build Rating . | . . . Parts Repaired . | . . . Time . | . . . Parts Recycled . | . . . Recycled Matter . | . . . Retrieved Matter . | . . . Retrieved Components . | . . . Parts Scanalyzed . | . . . Part Schematics Acquired . | . . . Parts Damaged . | . . . Bothacking | -11 -10 -10 ------------ Run | Yrd Mat Sub Used RIF Installer . | . . . Robots Hacked . | . . . Non-combat . | . . . Combat . | . . . Robot Hacks Applied . | . . . Relay Couplers Released . | . . . Fabnet Peak Effective % . | . . . Robots Rewired . | . . . Allies Hacked . | . . . Hacks Repelled . | . . . Allies | -11 -10 -10 -------- Run | Yrd Mat Sub Total Allies . | . . . Largest Group . | . . . Highest-Rated Group . | . . . Highest-Rated Ally . | . . . Total Orders . | . . . Ally Attacks . | . . . Total Damage . | . . . Kills . | . . . Allies Corrupted . | . . . Allies Melted . | . . . Intel | -11 -10 -10 ------- Run | Yrd Mat Sub Active Infowar (turns) 1842 | . 1089 753 Terrain 1498 | . 1089 409 Structural 344 | . . 344 Robot Analysis Total 1 | . 1 . Derelict Logs Recovered 1 | . . 1 Drone Launches . | . . . Drone Recoveries . | . . . Exploration | -11 -10 -10 ------------- Run | Yrd Mat Sub Turns Passed 1881 | 2 1125 754 Spaces Moved 910 | 1 401 508 Core . | . . . Treads . | . . . Legs 910 | 1 401 508 Wheels . | . . . Hover . | . . . Flight . | . . . Fastest Speed 120 | 120 120 120 Average Speed 120 | 120 120 120 Slowest Speed 120 | 120 120 120 Overloaded Moves . | . . . Propulsion Burnouts . | . . . Robots Hopped . | . . . Potential Cave-ins . | . . . Cave-ins Triggered . | . . . Exploration Rate (%) 32 | 2 63 32 Regions Visited 2 Branch Regions 1 Pre-discovered Areas 1 | . . 1 Known Exits Taken . | . . . Unknown Exits Taken 2 | 1 1 . Scrap Searched 1 | . . 1 Spaces Dug . | . . . Terrain Destroyed . | . . . Melee . | . . . Projectile . | . . . AOE . | . . . Terrain Rammed . | . . . Walls Destroyed . | . . . Machines Disabled . | . . . Actions | -11 -10 -10 --------- Run | Yrd Mat Sub Total 1569 | 1 967 601 Wait 529 | . 504 25 Move 908 | . 400 508 Hop . | . . . Pick Up 6 | . 2 4 Fast Attach 2 | . 2 . Attach 6 | . 1 5 Detach . | . . . Swap 11 | 1 8 2 Drop 8 | . 3 5 Fire 71 | . 41 30 Melee . | . . . Ram . | . . . Kick 6 | . 6 . Crush 22 | . . 22 Escape Stasis . | . . . Rewire . | . . . Trap . | . . . Miscellaneous . | . . . Route ------- -11/Scrapyard -10/Materials (discovered 3 exits: [*Mat x2] / *Sub) -10/Subcaves History --------- Turn | Location | Event 3 | -11/Scrapyard | Discovered new exit (range 0) 3 | -11/Scrapyard | Entered Materials 81 | -10/Materials | Central database locked down 152 | -10/Materials | Discovered new exit (range 8) 301 | -10/Materials | Build established: Mutant 802 | -10/Materials | Discovered new exit (range 4) 1118 | -10/Materials | Discovered new exit (range 8) 1128 | -10/Materials | Entered Subcaves 1129 | -10/Subcaves | Approached by a straggling Scientist 1401 | -10/Subcaves | Visited 4L-MR0's lab 1420 | -10/Subcaves | Found Meta Core 1511 | -10/Subcaves | Ambushed by Subdwellers from Twisted Machinery 1800 | -10/Subcaves | Learned location of Zion (-7) 1808 | -10/Subcaves | A Subdweller sparked back to life 1808 | -10/Subcaves | A Subdweller sparked back to life 1820 | -10/Subcaves | Core integrity fell below 50% 1877 | -10/Subcaves | Core integrity fell below 20% 1882 | -10/Subcaves | Destroyed by BM-G6Q(R) with Subdweller Laser Last Messages --------------- 01823_ EA-6VO(R) suffers critical hit (Burn). 01823_ Aluminum Leg destroyed. 01828_ Ion Engine destroyed. 01829_ Particle Gun destroyed. 01833_ System corrupted: Component data lost. 01834_ EA-6VO(R) destroyed. 01841_ BM-G6Q(R) affixes Scrap Shield Fragment to Scrap Shield. 01845_ Sub. Machine Gun shoots sparks and powers down. 01846_ Broken Sub. Machine Gun destroyed. 01847_ Slammed into BM-G6Q(R). 01851_ Acquired 17 matter. 01851_ Slammed into BM-G6Q(R). 01852_ Aluminum Leg destroyed. 01853_ Slammed into BM-G6Q(R). 01855_ BM-G6Q(R) knocked back. 01856_ Slammed into BM-G6Q(R). 01860_ Lgt. Ion Engine destroyed. 01861_ Slammed into BM-G6Q(R). 01868_ Acquired 1 matter. 01868_ Slammed into BM-G6Q(R). Map ----- +----------------------------------------------------+ | ????????## ##?? | | ????????## ##?? | | ????????### "" ### ##?? | | ????????#### """" #### ##?? | | ?????????### ##### "#### " ##### ###?? | | ????????#### #############""" ###### ###?? | | ????????### ############# " ####### ##??? | | ????????## #### #### ###### ###??? | | ????????### "##? #######?## ###??? | | ????????### ###? #####??## ###??? | | ?????????## #### ???????##### ##??? | | ?????????## ##### ????????###### ###?? | | ?????????### #### ???????????### ###?? | | ?????????### ## ##????????????### ##?? | | ??????????## ###### ##????????????### ##?? | | ??????????## ###### ##?????????????## ###?? | | ??????????### ### ## ###?????????????#######?? | | ??????????#### ## ###?????????????######??? | | ???????????#### ##?????????????????????? | | ????????????#### ## ##?????????????????????? | | ?????????????### ### ###?????????????????????? | | ?????????????## #### ##?????????????????????? | | ????????????### ### ###?????????????????????? | | ????????????## ###%%###?????????????????????? | | ????????????## ### ##%%%###?????????????????????? | | ???????????## #####%!%R@##?????????????????????? | | ???????????## ??## = %%##?????????????????????? | | ???????????## ??## ## ####?????????????????????? | | ??????????## ??## ######?????????????????????? | | ??????????## ?# #####???????????????????????? | | ??????????## # ? ####?????????????????????????? | | ??????????### #"" " #??????????????????????????? | | ??????????###### ?????????????????????????????? | | ???????????##### ?????????????????????????????? | | ??????????????## &" ?????????????????????????????? | | ??????????????# ????????????????????????????? | | ?????????????? ##????????????????????????????? | | ????????????## ##????????????????????????????? | | ????????????### ? ??????????????????????????????? | | ????????????#### ? ??????????????????????????????? | | ?????????????### ????????????????????????????????? | | ?????????????????????????????????????????????????? | | ?????????????????????????????????????????????????? | | ?????????????????????????????????????????????????? | | ?????????????????????????????????????????????????? | | ?????????????????????????????????????????????????? | | ?????????????????????????????????????????????????? | | ?????????????????????????????????????????????????? | | ?????????????????????????????????????????????????? | | ?????????????????????????????????????????????????? | +----------------------------------------------------+ Best States ------------- Heat Dissipation 25 Energy Generation 10 Energy Capacity 250 Matter Stores 300 Matter Capacity 300 Sight Range 16 Terrain Scan Range 14 Terrain Scan Density 10 Evasion (%) 55 Recoil Reduction 2 Item Schematics ----------------- None Robot Schematics ------------------ None Fabricated ------------ Nothing Repaired ---------- Nothing Alien Tech Used ----------------- None Achievements -------------- None Challenges ------------ None Game ------ Seed HeartSpliceDevice Manual? 0 Play Time 00:10:36 Cumulative 383.1 hours Start 2025.06.22 @ 17:26:33 End 2025.06.22 @ 17:33:36 Sessions 1 Manual Loads 0 Difficulty Rogue Special Mode None Game No. 478 Rogue 478 Adventurer 0 Explorer 0 Win Type - Total 30 Types 14/1/9/1/1/1/0/1/1/1 Lore% 86 Gallery% 78 Achievement% 77 Wizard Run 0 Options --------- Layout 0 ASCII 0 Keyboard 0 Movement Numpad Keybinds 0 Fullscreen 1 Font 18/SmallcapsGlow Map View 76x50 Zoom Use 0% Tactical HUD 1 Map Filters NONE Filters NONE Steam 1 RUN: 0f31f1d5-f87a-4849-9066-4947b08d974c